[Event "DVM U12 2021-22"]
[Site "Naumburg"]
[Date "2022.03.26"]
[Round "2"]
[White "Zhang, Yibo"]
[Black "Middendorf, Sven-Jonas"]
[Result "1/2-1/2"]
[ECO "C45"]
[WhiteElo "1397"]
[BlackElo "1424"]
[Annotator "NA RC"]
[PlyCount "67"]
[EventDate "2022.03.25"]
[EventType "team-tourn"]
[EventRounds "7"]
[EventCountry "GER"]
[SourceTitle "playchess.com"]
[Source "ChessBase"]
[SourceQuality "1"]
[TimeControl "40/5400+30:1800+30"]

1. e4 {[%emt 0:00:02]} e5 {[%emt 0:00:01]} 2. Nf3 {[%emt 0:00:05]} Nc6 {[%emt 0:00:04]} 3. d4 {[%emt 0:00:04]} exd4 {[%emt 0:00:05]} 4. Nxd4 {[%emt 0:00:05]} Nf6 {[%emt 0:00:03]} 5. Nxc6 {[%emt 0:00:05]} bxc6 {[%emt 0:00:04]} 6. e5 {[%emt 0:00:04]} Qe7 {[%emt 0:00:05]} 7. Qe2 {[%emt 0:00:06]} Nd5 {[%emt 0:00:05]} 8. c4 {[%emt 0:00:06]} Ba6 {[%emt 0:00:07]} 9. b3 {[%emt 0:00:03]} g6 {[%emt 0:00:09]} 10. f4 {[%emt 0:00:05]} Bg7 {[%emt 0:00:12]} 11. Qf2 {[%emt 0:00:10]} Nb6 {[%emt 0:00:58]} 12. Ba3 {[%emt 0:02:38]} d6 {[%emt 0:15:47]} 13. c5 {[%emt 0:10:06]} Bxe5 {[%emt 0:01:39]} 14. Bxa6 {[%emt 0:18:42]} Bxa1+ {[%emt 0:02:47]} 15. Kd1 {[%emt 0:00:32]} O-O {[%emt 0:10:24]} 16. cxb6 {[%emt 0:02:15]} cxb6 {[%emt 0:02:01]} 17. Re1 {[%emt 0:03:33]} Qd7 {[%emt 0:03:44]} 18. Bd3 {[%emt 0:11:27]} Qg4+ {[%emt 0:01:02]} 19. Kc2 {[%emt 0:00:39]} Rad8 {[%emt 0:01:24]} 20. Nc3 {[%emt 0:01:30]} Bxc3 {[%emt 0:00:22]} 21. Kxc3 {[%emt 0:01:11]} Qd7 {[%emt 0:01:58]} 22. f5 {[%emt 0:01:25]} Rfe8 {[%emt 0:06:47]} 23. f6 {[%emt 0:04:17]} Rxe1 {[%emt 0:00:46]} 24. Qxe1 {[%emt 0:00:07]} Qe6 {[%emt 0:00:57]} 25. Qh4 {[%emt 0:04:50]} Re8 {[%emt 0:03:16]} 26. Kc2 {[%emt 0:02:21]} Qe5 {[%emt 0:03:50]} 27. Bb2 {[%emt 0:09:10]} Qc5+ {[%emt 0:02:17]} 28. Bc3 {[%emt 0:00:39]} Re6 {[%emt 0:08:28]} 29. Bc4 {[%emt 0:01:44]} d5 {[%emt 0:06:09]} 30. Qh6 {[%emt 0:12:39]} Qf2+ {[%emt 0:02:15]} 31. Kb1 {[%emt 0:00:41]} Re1+ {[%emt 0:03:49]} 32. Bxe1 {[%emt 0:01:20]} Qxe1+ {[%emt 0:00:02]} 33. Kb2 {[%emt 0:09:19]} Qe5+ {[%emt 0:01:05]} 34. Kb1 {[%emt 0:04:38]} 1/2-1/2

[Event "DVM U12 2021-22"]
[Site "Naumburg"]
[Date "2022.03.26"]
[Round "2"]
[White "Flierl, Veronika"]
[Black "Gulamzada, Elmir"]
[Result "0-1"]
[ECO "C02"]
[WhiteElo "1356"]
[BlackElo "1291"]
[Annotator "NA RC"]
[PlyCount "142"]
[EventDate "2022.03.25"]
[EventType "team-tourn"]
[EventRounds "7"]
[EventCountry "GER"]
[SourceTitle "playchess.com"]
[Source "ChessBase"]
[SourceQuality "1"]
[TimeControl "40/5400+30:1800+30"]

1. e4 {[%emt 0:00:02]} e6 {[%emt 0:00:19]} 2. d4 {[%emt 0:01:06]} d5 {[%emt 0:00:21]} 3. e5 {[%emt 0:00:29]} c5 {[%emt 0:00:45]} 4. c3 {[%emt 0:00:24]} Nc6 {[%emt 0:00:37]} 5. Be3 {[%emt 0:01:13]} Qb6 {[%emt 0:00:51]} 6. Qd2 {[%emt 0:00:40]} cxd4 {[%emt 0:01:17]} 7. cxd4 {[%emt 0:00:16]} Bd7 {[%emt 0:00:59]} 8. Nf3 {[%emt 0:02:10]} Nge7 {[%emt 0:04:28]} 9. Nh4 {[%emt 0:13:40]} Ng6 {[%emt 0:01:26]} 10. Nxg6 {[%emt 0:00:38]} hxg6 {[%emt 0:00:25]} 11. Nc3 {[%emt 0:03:19]} Be7 {[%emt 0:01:36]} 12. Be2 {[%emt 0:02:11]} Rc8 {[%emt 0:02:59]} 13. O-O {[%emt 0:02:58]} a6 {[%emt 0:05:09]} 14. f4 {[%emt 0:10:47]} Na7 {[%emt 0:06:49]} 15. a3 {[%emt 0:04:58]} Nb5 {[%emt 0:01:19]} 16. Rac1 {[%emt 0:10:12]} Nxc3 {[%emt 0:03:59]} 17. Rxc3 {[%emt 0:00:20]} Rxc3 {[%emt 0:00:33]} 18. Qxc3 {[%emt 0:00:10]} Bb5 {[%emt 0:04:48]} 19. Qb3 {[%emt 0:09:30]} Qa5 {[%emt 0:04:45]} 20. Bxb5+ {[%emt 0:00:44]} Qxb5 {[%emt 0:02:06]} 21. Qxb5+ {[%emt 0:00:14]} axb5 {[%emt 0:00:14]} 22. Rc1 {[%emt 0:00:20]} Kd7 {[%emt 0:01:24]} 23. Bd2 {[%emt 0:00:24]} Rc8 {[%emt 0:01:25]} 24. Rf1 {[%emt 0:02:25]} Rc2 {[%emt 0:00:55]} 25. Bc3 {[%emt 0:00:16]} f6 {[%emt 0:03:42]} 26. Rf3 {[%emt 0:03:32]} Ke8 {[%emt 0:02:52]} 27. Rg3 {[%emt 0:05:09]} Kf7 {[%emt 0:01:17]} 28. Kf1 {[%emt 0:02:03]} Rc1+ {[%emt 0:08:02]} 29. Ke2 {[%emt 0:00:26]} Rh1 {[%emt 0:00:16]} 30. h3 {[%emt 0:00:19]} f5 {[%emt 0:01:47]} 31. Rd3 {[%emt 0:04:49]} b6 {[%emt 0:01:09]} 32. Be1 {[%emt 0:01:12]} g5 {[%emt 0:04:11]} 33. Bg3 {[%emt 0:01:11]} gxf4 {[%emt 0:00:53]} 34. Bxf4 {[%emt 0:00:10]} b4 {[%emt 0:01:42]} 35. a4 {[%emt 0:00:47]} Ra1 {[%emt 0:00:32]} 36. b3 {[%emt 0:00:19]} Rb1 {[%emt 0:01:29]} 37. Rg3 {[%emt 0:02:04]} Bh4 {[%emt 0:00:19]} 38. Rf3 {[%emt 0:00:42]} Rb2+ {[%emt 0:03:58]} 39. Kf1 {[%emt 0:01:59]} g5 {[%emt 0:01:06]} 40. g3 {[%emt 0:02:24]} gxf4 {[%emt 0:06:56]} 41. gxh4 {[%emt 0:30:13]} Kg6 {[%emt 0:30:50]} 42. Ke1 {[%emt 0:01:47]} Kh5 {[%emt 0:00:27]} 43. Kd1 {[%emt 0:00:40]} Kxh4 {[%emt 0:01:19]} 44. Ke1 {[%emt 0:00:18]} Kg5 {[%emt 0:00:44]} 45. Kd1 {[%emt 0:00:27]} Rg2 {[%emt 0:01:20]} 46. Ke1 {[%emt 0:04:35]} Rg3 {[%emt 0:00:31]} 47. Kf2 {[%emt 0:00:09]} Kh4 {[%emt 0:00:33]} 48. Rxf4+ {[%emt 0:00:23]} Kxh3 {[%emt 0:01:41]} 49. Rf3 {[%emt 0:00:18]} Rxf3+ {[%emt 0:00:35]} 50. Kxf3 {[%emt 0:00:06]} Kh4 {[%emt 0:00:17]} 51. Kf4 {[%emt 0:00:12]} Kh5 {[%emt 0:00:14]} 52. Kf3 {[%emt 0:00:07]} Kg5 {[%emt 0:00:13]} 53. Kg3 {[%emt 0:00:06]} f4+ {[%emt 0:00:17]} 54. Kf3 {[%emt 0:00:05]} Kf5 {[%emt 0:00:18]} 55. Kf2 {[%emt 0:01:43]} Ke4 {[%emt 0:00:10]} 56. a5 {[%emt 0:00:05]} bxa5 {[%emt 0:00:46]} 57. Ke2 {[%emt 0:00:18]} Kxd4 {[%emt 0:00:14]} 58. Kd2 {[%emt 0:00:27]} f3 {[%emt 0:00:16]} 59. Kd1 {[%emt 0:00:21]} Kd3 {[%emt 0:00:13]} 60. Ke1 {[%emt 0:00:30]} Kc3 {[%emt 0:00:13]} 61. Kf2 {[%emt 0:00:38]} Kxb3 {[%emt 0:00:43]} 62. Kxf3 {[%emt 0:00:13]} a4 {[%emt 0:00:13]} 63. Ke2 {[%emt 0:00:16]} a3 {[%emt 0:00:08]} 64. Kd2 {[%emt 0:00:08]} a2 {[%emt 0:00:16]} 65. Kd3 {[%emt 0:00:03]} a1=Q {[%emt 0:00:11]} 66. Kd2 {[%emt 0:00:13]} Qc3+ {[%emt 0:00:32]} 67. Kd1 {[%emt 0:00:13]} Qc2+ {[%emt 0:00:24]} 68. Ke1 {[%emt 0:00:07]} Kc3 {[%emt 0:00:19]} 69. Kf1 {[%emt 0:00:05]} b3 {[%emt 0:00:11]} 70. Ke1 {[%emt 0:00:07]} b2 {[%emt 0:00:20]} 71. Kf1 {[%emt 0:00:08]} b1=R# 0-1

[Event "DVM U12 2021-22"]
[Site "Naumburg"]
[Date "2022.03.26"]
[Round "2"]
[White "Fadeev, Justin Michael"]
[Black "Friedrich, Timofej"]
[Result "0-1"]
[ECO "B13"]
[WhiteElo "1327"]
[BlackElo "1377"]
[Annotator "NA"]
[PlyCount "78"]
[EventDate "2022.03.25"]
[EventType "team-tourn"]
[EventRounds "7"]
[EventCountry "GER"]
[SourceTitle "playchess.com"]
[Source "ChessBase"]
[SourceQuality "1"]
[TimeControl "40/5400+30:1800+30"]

1. e4 {[%emt 0:00:01]} c6 {[%emt 0:00:09]} 2. d4 {[%emt 0:00:09]} d5 {[%emt 0:00:07]} 3. exd5 {[%emt 0:00:21]} cxd5 {[%emt 0:00:10]} 4. Bd3 {[%emt 0:01:00]} Nc6 {[%emt 0:00:44]} 5. c3 {[%emt 0:00:44]} Nf6 {[%emt 0:00:19]} 6. Bf4 {[%emt 0:00:29]} g6 {[%emt 0:00:15]} 7. Nf3 {[%emt 0:01:24]} Bg7 {[%emt 0:00:30]} 8. O-O {[%emt 0:00:41]} O-O {[%emt 0:00:12]} 9. Re1 {[%emt 0:01:08]} Nh5 {[%emt 0:01:37]} 10. Bg5 {[%emt 0:01:24]} Re8 {[%emt 0:01:45]} 11. Nbd2 {[%emt 0:03:31]} f5 {[%emt 0:02:02]} 12. Ne5 {[%emt 0:02:38]} Nf6 {[%emt 0:02:59]} 13. f4 {[%emt 0:08:57]} Qd6 {[%emt 0:05:00]} 14. Nxc6 {[%emt 0:12:36]} bxc6 {[%emt 0:01:25]} 15. Bxf6 {[%emt 0:01:44]} Bxf6 {[%emt 0:00:54]} 16. Qf3 {[%emt 0:00:20]} e6 {[%emt 0:02:35]} 17. Qg3 {[%emt 0:00:43]} Kf7 {[%emt 0:01:52]} 18. Nf3 {[%emt 0:00:21]} Qe7 {[%emt 0:05:19]} 19. Ne5+ {[%emt 0:01:30]} Bxe5 {[%emt 0:00:30]} 20. Rxe5 {[%emt 0:00:53]} Qf6 {[%emt 0:01:16]} 21. Rae1 {[%emt 0:01:32]} Bd7 {[%emt 0:00:46]} 22. h4 {[%emt 0:05:36]} Rg8 {[%emt 0:02:56]} 23. Qf2 Rae8 {[%emt 0:02:43]} 24. g3 {[%emt 0:03:20]} h6 {[%emt 0:01:43]} 25. Qe2 {[%emt 0:01:29]} g5 {[%emt 0:03:43]} 26. Qh5+ {[%emt 0:00:26]} Qg6 {[%emt 0:00:17]} 27. Qxg6+ {[%emt 0:00:57]} Rxg6 {[%emt 0:00:30]} 28. Be2 {[%emt 0:04:06]} gxf4 {[%emt 0:05:25]} 29. Bh5 {[%emt 0:00:14]} Reg8 {[%emt 0:00:18]} 30. R5e2 {[%emt 0:01:42]} Kf6 {[%emt 0:01:48]} 31. Bxg6 {[%emt 0:00:39]} Rxg6 {[%emt 0:00:22]} 32. Rg2 {[%emt 0:00:35]} fxg3 {[%emt 0:01:13]} 33. Rf1 {[%emt 0:00:42]} Rg4 {[%emt 0:00:21]} 34. Rf3 {[%emt 0:00:45]} f4 {[%emt 0:00:42]} 35. Kf1 {[%emt 0:00:32]} Kf5 {[%emt 0:00:11]} 36. Re2 {[%emt 0:01:00]} Rxh4 {[%emt 0:01:03]} 37. Rg2 {[%emt 0:03:04]} Kg4 {[%emt 0:01:27]} 38. Ke2 {[%emt 0:01:29]} Be8 {[%emt 0:01:09]} 39. Rg1 {[%emt 0:00:38]} Rh2+ {[%emt 0:00:16]} 0-1

[Event "DVM U12 2021-22"]
[Site "Naumburg"]
[Date "2022.03.26"]
[Round "2"]
[White "Rudolph, Konrad"]
[Black "Koberstein, Simon"]
[Result "1-0"]
[ECO "E24"]
[WhiteElo "1321"]
[BlackElo "1462"]
[Annotator "NA RC"]
[PlyCount "63"]
[EventDate "2022.03.25"]
[EventType "team-tourn"]
[EventRounds "7"]
[EventCountry "GER"]
[SourceTitle "playchess.com"]
[Source "ChessBase"]
[SourceQuality "1"]
[TimeControl "40/5400+30:1800+30"]

1. d4 {[%emt 0:00:11]} Nf6 {[%emt 0:00:08]} 2. c4 {[%emt 0:00:24]} e6 {[%emt 0:00:07]} 3. Nc3 {[%emt 0:00:47]} Bb4 {[%emt 0:00:36]} 4. a3 {[%emt 0:00:49]} Bxc3+ {[%emt 0:01:28]} 5. bxc3 {[%emt 0:00:41]} d5 {[%emt 0:00:38]} 6. a4 {[%emt 0:02:28]} Nc6 {[%emt 0:01:27]} 7. Ba3 {[%emt 0:01:02]} e5 {[%emt 0:01:25]} 8. Nf3 {[%emt 0:02:56]} e4 {[%emt 0:01:01]} 9. Ne5 {[%emt 0:05:24]} Be6 {[%emt 0:03:06]} 10. Nxc6 {[%emt 0:06:07]} bxc6 {[%emt 0:00:08]} 11. Qb3 {[%emt 0:04:00]} Rb8 {[%emt 0:00:57]} 12. Qa2 {[%emt 0:01:01]} Nd7 {[%emt 0:02:28]} 13. a5 {[%emt 0:01:39]} Qf6 {[%emt 0:05:07]} 14. e3 {[%emt 0:03:02]} h5 {[%emt 0:07:11]} 15. Rb1 {[%emt 0:02:55]} Qd8 {[%emt 0:04:50]} 16. h3 {[%emt 0:10:24]} h4 {[%emt 0:02:54]} 17. Be2 {[%emt 0:02:40]} Qc8 {[%emt 0:03:39]} 18. O-O {[%emt 0:01:19]} Rh6 {[%emt 0:04:06]} 19. Rb2 {[%emt 0:01:32]} Rg6 {[%emt 0:02:27]} 20. Kh2 {[%emt 0:02:20]} Ra8 {[%emt 0:06:10]} 21. Rfb1 {[%emt 0:02:47]} Qd8 {[%emt 0:04:59]} 22. Qb3 {[%emt 0:07:33]} Qg5 {[%emt 0:03:45]} 23. Bf1 {[%emt 0:02:20]} dxc4 {[%emt 0:07:10]} 24. Qb7 {[%emt 0:03:30]} Rd8 {[%emt 0:02:15]} 25. Qxa7 {[%emt 0:02:57]} f5 {[%emt 0:02:36]} 26. Qxc7 {[%emt 0:02:53]} f4 {[%emt 0:02:50]} 27. exf4 {[%emt 0:00:57]} Qd5 {[%emt 0:02:20]} 28. a6 {[%emt 0:00:01]} Bf5 {[%emt 0:01:56]} 29. a7 {[%emt 0:02:46]} Qe6 {[%emt 0:02:07]} 30. Qxd8+ {[%emt 0:01:36]} Kxd8 {[%emt 0:00:16]} 31. a8=Q+ {[%emt 0:01:00]} Nb8 {[%emt 0:00:15]} 32. Rxb8+ {[%emt 0:02:13]} 1-0

[Event "DVM U12 2021-22"]
[Site "Naumburg"]
[Date "2022.03.26"]
[Round "2"]
[White "Marinin, Georgii"]
[Black "Barthel, Jacob"]
[Result "1-0"]
[ECO "D02"]
[WhiteElo "1293"]
[BlackElo "1321"]
[Annotator "NA RC"]
[PlyCount "79"]
[EventDate "2022.03.25"]
[EventType "team-tourn"]
[EventRounds "7"]
[EventCountry "GER"]
[SourceTitle "playchess.com"]
[Source "ChessBase"]
[SourceQuality "1"]
[TimeControl "40/5400+30:1800+30"]

1. d4 {[%emt 0:00:01]} d5 {[%emt 0:00:12]} 2. Nf3 {[%emt 0:00:04]} Nf6 {[%emt 0:00:15]} 3. g3 {[%emt 0:00:09]} Bf5 {[%emt 0:01:04]} 4. Bg2 {[%emt 0:00:06]} e6 {[%emt 0:01:02]} 5. O-O {[%emt 0:00:17]} Bd6 {[%emt 0:00:21]} 6. b3 {[%emt 0:02:22]} Nbd7 {[%emt 0:02:08]} 7. Bb2 {[%emt 0:01:54]} c6 {[%emt 0:01:06]} 8. Nbd2 {[%emt 0:00:28]} h6 {[%emt 0:08:49]} 9. c4 {[%emt 0:00:53]} g5 {[%emt 0:08:19]} 10. a3 {[%emt 0:05:52]} g4 {[%emt 0:06:58]} 11. Nh4 {[%emt 0:03:29]} Bh7 {[%emt 0:00:31]} 12. b4 {[%emt 0:01:40]} Rf8 {[%emt 0:12:47]} 13. cxd5 {[%emt 0:08:03]} exd5 {[%emt 0:01:42]} 14. Re1 {[%emt 0:01:52]} Qe7 {[%emt 0:09:26]} 15. e4 {[%emt 0:01:56]} dxe4 {[%emt 0:01:48]} 16. f3 {[%emt 0:06:44]} gxf3 {[%emt 0:08:30]} 17. Bxf3 {[%emt 0:00:30]} O-O-O {[%emt 0:01:42]} 18. Rc1 {[%emt 0:07:11]} e3 {[%emt 0:03:49]} 19. Nc4 {[%emt 0:01:24]} Bc7 {[%emt 0:00:54]} 20. Rxe3 {[%emt 0:01:54]} Ne4 {[%emt 0:03:27]} 21. a4 {[%emt 0:14:06]} f5 {[%emt 0:01:17]} 22. b5 {[%emt 0:01:14]} c5 {[%emt 0:04:14]} 23. d5 {[%emt 0:02:54]} Bd6 {[%emt 0:07:56]} 24. Ba3 {[%emt 0:03:30]} Rg8 {[%emt 0:00:43]} 25. Bxe4 {[%emt 0:01:06]} fxe4 {[%emt 0:02:24]} 26. Ng2 {[%emt 0:04:22]} b6 {[%emt 0:02:28]} 27. a5 {[%emt 0:03:56]} Bf5 {[%emt 0:02:13]} 28. Qa4 {[%emt 0:01:59]} Bc7 {[%emt 0:01:53]} 29. Rd1 {[%emt 0:01:34]} Nb8 {[%emt 0:02:39]} 30. axb6 {[%emt 0:04:07]} Bxb6 {[%emt 0:00:43]} 31. Rc3 {[%emt 0:03:53]} Rd7 {[%emt 0:02:51]} 32. Na5 {[%emt 0:01:12]} Rc7 {[%emt 0:00:52]} 33. d6 {[%emt 0:00:24]} Qe5 {[%emt 0:00:50]} 34. dxc7 {[%emt 0:01:07]} Qxc3 {[%emt 0:00:31]} 35. cxb8=Q+ Kxb8 {[%emt 0:00:10]} 36. Qb3 {[%emt 0:00:33]} Qxb3 {[%emt 0:00:50]} 37. Nxb3 {[%emt 0:00:12]} c4+ {[%emt 0:00:07]} 38. Nd4 {[%emt 0:00:05]} Rd8 {[%emt 0:00:22]} 39. Bb2 {[%emt 0:00:15]} Bg4 {[%emt 0:00:29]} 40. Rd2 {[%emt 0:00:25]} 1-0

[Event "DVM U12 2021-22"]
[Site "Naumburg"]
[Date "2022.03.26"]
[Round "2"]
[White "Cwiklik, Julian"]
[Black "Strubelt, Björn"]
[Result "1-0"]
[ECO "C57"]
[WhiteElo "1255"]
[BlackElo "1079"]
[Annotator "NA"]
[PlyCount "111"]
[EventDate "2022.03.25"]
[EventType "team-tourn"]
[EventRounds "7"]
[EventCountry "GER"]
[SourceTitle "playchess.com"]
[Source "ChessBase"]
[SourceQuality "1"]
[TimeControl "40/5400+30:1800+30"]

1. e4 {[%emt 0:00:03]} e5 {[%emt 0:00:11]} 2. Nf3 {[%emt 0:00:14]} Nc6 {[%emt 0:00:13]} 3. Bc4 {[%emt 0:00:06]} Nf6 {[%emt 0:00:38]} 4. Ng5 {[%emt 0:00:19]} d5 {[%emt 0:00:58]} 5. exd5 {[%emt 0:00:09]} b5 {[%emt 0:00:05]} 6. Bb3 {[%emt 0:03:33]} Nd4 {[%emt 0:00:12]} 7. c3 {[%emt 0:03:32]} Nxb3 {[%emt 0:00:47]} 8. Qxb3 {[%emt 0:00:26]} Ba6 {[%emt 0:03:49]} 9. a4 {[%emt 0:02:38]} Qd7 {[%emt 0:00:24]} 10. Nf3 {[%emt 0:04:09]} bxa4 {[%emt 0:00:26]} 11. Qxa4 {[%emt 0:01:15]} Qxa4 {[%emt 0:00:21]} 12. Rxa4 {[%emt 0:00:05]} Bb5 {[%emt 0:00:05]} 13. Ra1 {[%emt 0:00:36]} e4 {[%emt 0:00:25]} 14. Nd4 {[%emt 0:00:53]} Bc4 {[%emt 0:01:25]} 15. Na3 {[%emt 0:01:53]} Ba6 {[%emt 0:00:17]} 16. Nab5 {[%emt 0:00:35]} Nxd5 {[%emt 0:04:03]} 17. Rxa6 {[%emt 0:01:32]} Be7 {[%emt 0:03:25]} 18. Nf5 {[%emt 0:00:49]} Bg5 {[%emt 0:02:57]} 19. c4 {[%emt 0:01:13]} Nb4 {[%emt 0:01:45]} 20. Nxc7+ {[%emt 0:01:25]} Kd7 {[%emt 0:00:12]} 21. Nxa8 {[%emt 0:02:26]} Nxa6 {[%emt 0:00:06]} 22. Nxg7 {[%emt 0:01:23]} Rg8 {[%emt 0:04:51]} 23. Nf5 {[%emt 0:00:36]} Ke6 {[%emt 0:01:41]} 24. Nd4+ {[%emt 0:00:47]} Kd6 {[%emt 0:01:56]} 25. Nb5+ {[%emt 0:00:30]} Kc6 {[%emt 0:01:40]} 26. Nxa7+ {[%emt 0:01:24]} Kb7 {[%emt 0:00:39]} 27. Nb5 {[%emt 0:00:32]} Kxa8 {[%emt 0:00:56]} 28. Nd6 {[%emt 0:00:21]} Nc5 {[%emt 0:00:25]} 29. Nxf7 {[%emt 0:01:02]} Nd3+ {[%emt 0:00:44]} 30. Ke2 {[%emt 0:00:36]} Nf4+ {[%emt 0:00:22]} 31. Kd1 {[%emt 0:01:23]} Nd3 {[%emt 0:01:01]} 32. Rf1 {[%emt 0:00:39]} h6 {[%emt 0:00:42]} 33. Nxg5 {[%emt 0:01:29]} hxg5 {[%emt 0:00:17]} 34. f3 {[%emt 0:00:46]} Rf8 35. Ke2 {[%emt 0:01:32]} g4 {[%emt 0:02:12]} 36. b3 {[%emt 0:01:42]} Nf4+ {[%emt 0:04:09]} 37. Ke3 {[%emt 0:01:58]} exf3 {[%emt 0:01:35]} 38. gxf3 {[%emt 0:01:02]} gxf3 39. Rxf3 Ng2+ {[%emt 0:01:18]} 40. Kf2 {[%emt 0:00:43]} Rxf3+ {[%emt 0:00:03]} 41. Kxf3 {[%emt 0:30:25]} Ne1+ {[%emt 0:31:26]} 42. Kg4 {[%emt 0:00:19]} Nd3 {[%emt 0:00:15]} 43. Ba3 {[%emt 0:00:27]} Nf2+ {[%emt 0:00:35]} 44. Kf5 {[%emt 0:00:26]} Nd3 {[%emt 0:01:02]} 45. h4 {[%emt 0:00:18]} Kb7 {[%emt 0:07:15]} 46. h5 {[%emt 0:00:28]} Kb6 {[%emt 0:00:04]} 47. h6 {[%emt 0:00:20]} Ka5 {[%emt 0:03:56]} 48. h7 {[%emt 0:00:49]} Nb4 {[%emt 0:00:59]} 49. Bxb4+ {[%emt 0:01:06]} Kxb4 {[%emt 0:01:47]} 50. h8=Q {[%emt 0:00:06]} Ka3 {[%emt 0:00:15]} 51. c5 {[%emt 0:00:24]} Kb4 {[%emt 0:00:53]} 52. c6 {[%emt 0:00:16]} Kb5 {[%emt 0:00:04]} 53. c7 {[%emt 0:00:04]} Kb6 {[%emt 0:01:34]} 54. Qb8+ {[%emt 0:00:53]} Kc5 55. c8=Q+ {[%emt 0:00:15]} Kd4 {[%emt 0:00:51]} 56. Qd6# 1-0

[Event "DVM U12 2021-22"]
[Site "Naumburg"]
[Date "2022.03.26"]
[Round "2"]
[White "Göllnitz, Aaron"]
[Black "Uhl, Henry"]
[Result "0-1"]
[ECO "D04"]
[WhiteElo "1150"]
[BlackElo "1301"]
[Annotator "NA"]
[PlyCount "90"]
[EventDate "2022.03.25"]
[EventType "team-tourn"]
[EventRounds "7"]
[EventCountry "GER"]
[SourceTitle "playchess.com"]
[Source "ChessBase"]
[SourceQuality "1"]
[TimeControl "40/5400+30:1800+30"]

1. d4 {[%emt 0:00:04]} d5 {[%emt 0:00:17]} 2. Nf3 {[%emt 0:00:08]} Nf6 {[%emt 0:00:23]} 3. e3 {[%emt 0:00:16]} Nc6 {[%emt 0:00:27]} 4. a3 {[%emt 0:00:31]} Bf5 {[%emt 0:00:26]} 5. b3 {[%emt 0:00:58]} e6 {[%emt 0:00:14]} 6. Bb2 {[%emt 0:00:32]} Bd6 {[%emt 0:00:17]} 7. Be2 {[%emt 0:00:33]} O-O {[%emt 0:00:36]} 8. O-O {[%emt 0:00:10]} Re8 {[%emt 0:00:37]} 9. Re1 {[%emt 0:00:43]} e5 {[%emt 0:00:34]} 10. dxe5 {[%emt 0:00:33]} Nxe5 {[%emt 0:00:25]} 11. Nxe5 {[%emt 0:00:38]} Bxe5 {[%emt 0:00:09]} 12. Bxe5 {[%emt 0:01:44]} Rxe5 {[%emt 0:00:17]} 13. Bf1 {[%emt 0:00:54]} Qd6 {[%emt 0:00:49]} 14. Nd2 {[%emt 0:03:04]} Rae8 {[%emt 0:02:29]} 15. Nf3 {[%emt 0:00:52]} R5e7 {[%emt 0:01:15]} 16. c4 {[%emt 0:03:18]} Bg4 {[%emt 0:02:42]} 17. h3 {[%emt 0:01:47]} Bxf3 {[%emt 0:00:54]} 18. Qxf3 {[%emt 0:00:23]} c6 {[%emt 0:00:55]} 19. Red1 {[%emt 0:02:30]} Re5 {[%emt 0:02:38]} 20. b4 {[%emt 0:02:18]} Rg5 {[%emt 0:01:36]} 21. c5 {[%emt 0:01:22]} Qc7 {[%emt 0:00:57]} 22. Qf4 {[%emt 0:01:25]} Ree5 {[%emt 0:01:34]} 23. g4 {[%emt 0:01:33]} Qd7 {[%emt 0:01:25]} 24. f3 {[%emt 0:01:01]} Qe7 {[%emt 0:03:07]} 25. Rd3 {[%emt 0:04:15]} h6 {[%emt 0:01:24]} 26. h4 {[%emt 0:00:52]} Rg6 {[%emt 0:00:27]} 27. Kh1 {[%emt 0:01:08]} Nh7 {[%emt 0:01:14]} 28. Qg3 {[%emt 0:01:35]} Rxe3 {[%emt 0:00:49]} 29. Rxe3 {[%emt 0:00:41]} Qxe3 {[%emt 0:00:06]} 30. Qb8+ Nf8 31. Kg2 {[%emt 0:02:56]} Rf6 {[%emt 0:01:22]} 32. Qg3 {[%emt 0:00:40]} Ne6 {[%emt 0:00:58]} 33. Qf2 {[%emt 0:02:16]} Qc3 {[%emt 0:00:56]} 34. Ra2 {[%emt 0:01:13]} Rf4 {[%emt 0:02:06]} 35. Qg3 {[%emt 0:02:54]} d4 {[%emt 0:00:45]} 36. Re2 {[%emt 0:02:43]} Rf6 {[%emt 0:01:03]} 37. Re4 {[%emt 0:01:45]} d3 {[%emt 0:00:34]} 38. f4 {[%emt 0:01:37]} Qc2+ {[%emt 0:00:53]} 39. Kh3 {[%emt 0:00:46]} d2 {[%emt 0:00:33]} 40. Re2 {[%emt 0:00:56]} Nxf4+ {[%emt 0:00:12]} 41. Kh2 {[%emt 0:30:49]} Nxe2 {[%emt 0:30:12]} 42. Bxe2 {[%emt 0:01:51]} d1=Q {[%emt 0:00:21]} 43. g5 {[%emt 0:04:35]} Qcxe2+ {[%emt 0:00:31]} 44. Kh3 {[%emt 0:00:37]} Qdf1+ {[%emt 0:00:14]} 45. Qg2 {[%emt 0:00:54]} Qexg2# {[%emt 0:00:15]} 0-1

[Event "DVM U12 2021-22"]
[Site "Naumburg"]
[Date "2022.03.26"]
[Round "2"]
[White "Roos Nazario, Valentin"]
[Black "Dordevic, Tom"]
[Result "0-1"]
[ECO "B42"]
[WhiteElo "1140"]
[BlackElo "1671"]
[Annotator "NA RC"]
[PlyCount "93"]
[EventDate "2022.03.25"]
[EventType "team-tourn"]
[EventRounds "7"]
[EventCountry "GER"]
[SourceTitle "playchess.com"]
[Source "ChessBase"]
[SourceQuality "1"]
[TimeControl "40/5400+30:1800+30"]

1. e4 {[%emt 0:00:02]} c5 {[%emt 0:00:03]} 2. Nf3 {[%emt 0:00:30]} e6 {[%emt 0:00:05]} 3. d4 {[%emt 0:00:57]} cxd4 {[%emt 0:00:03]} 4. Nxd4 {[%emt 0:00:06]} a6 {[%emt 0:00:03]} 5. Bd3 {[%emt 0:00:45]} Qc7 {[%emt 0:00:43]} 6. Nc3 {[%emt 0:03:38]} Nf6 {[%emt 0:00:29]} 7. Bd2 {[%emt 0:05:39]} Be7 {[%emt 0:00:47]} 8. Qe2 {[%emt 0:01:59]} d6 {[%emt 0:01:15]} 9. O-O {[%emt 0:01:42]} Nbd7 {[%emt 0:01:02]} 10. a4 {[%emt 0:00:38]} b6 {[%emt 0:07:00]} 11. f4 {[%emt 0:04:35]} Nc5 {[%emt 0:01:44]} 12. Rac1 {[%emt 0:12:33]} O-O {[%emt 0:22:26]} 13. e5 {[%emt 0:07:07]} Nfd7 {[%emt 0:13:17]} 14. b4 {[%emt 0:07:43]} dxe5 {[%emt 0:36:53]} 15. fxe5 {[%emt 0:01:55]} Nxd3 {[%emt 0:05:45]} 16. cxd3 {[%emt 0:00:56]} Qxe5 {[%emt 0:01:47]} 17. Nc6 {[%emt 0:01:13]} Bc5+ {[%emt 0:01:02]} 18. bxc5 {[%emt 0:02:28]} Qxc5+ {[%emt 0:00:03]} 19. Be3 {[%emt 0:00:36]} Qxc6 {[%emt 0:00:07]} 20. Nb5 {[%emt 0:00:49]} Qb7 {[%emt 0:01:14]} 21. Rc7 {[%emt 0:03:01]} Qb8 {[%emt 0:00:23]} 22. Bf4 {[%emt 0:01:13]} e5 {[%emt 0:00:10]} 23. Bxe5 {[%emt 0:00:22]} Nxe5 {[%emt 0:00:06]} 24. Qxe5 {[%emt 0:00:07]} Bd7 {[%emt 0:04:05]} 25. Nc3 {[%emt 0:00:42]} Ra7 {[%emt 0:00:25]} 26. Nd5 {[%emt 0:00:05]} Rxc7 {[%emt 0:00:12]} 27. Qxc7 {[%emt 0:00:19]} Qxc7 {[%emt 0:00:04]} 28. Nxc7 {[%emt 0:00:12]} a5 {[%emt 0:00:26]} 29. Rb1 {[%emt 0:00:50]} Rb8 {[%emt 0:01:57]} 30. Nd5 {[%emt 0:01:12]} b5 {[%emt 0:00:32]} 31. axb5 {[%emt 0:00:06]} Rxb5 {[%emt 0:00:05]} 32. Rxb5 {[%emt 0:00:39]} Bxb5 {[%emt 0:00:04]} 33. d4 {[%emt 0:00:28]} f6 {[%emt 0:00:39]} 34. Nc3 {[%emt 0:00:11]} Bc4 {[%emt 0:00:10]} 35. Kf2 {[%emt 0:00:24]} Kf7 {[%emt 0:00:14]} 36. d5 {[%emt 0:01:24]} Bb3 {[%emt 0:00:48]} 37. Ke3 {[%emt 0:00:16]} a4 {[%emt 0:00:23]} 38. Kd2 {[%emt 0:01:17]} Ke7 {[%emt 0:01:07]} 39. Kd3 {[%emt 0:00:31]} a3 {[%emt 0:00:45]} 40. d6+ {[%emt 0:00:18]} Kd8 {[%emt 0:00:28]} 41. Ke4 {[%emt 0:30:16]} a2 {[%emt 0:30:08]} 42. Nxa2 {[%emt 0:00:04]} Bxa2 {[%emt 0:00:03]} 43. h4 {[%emt 0:00:12]} Kd7 {[%emt 0:00:03]} 44. g4 {[%emt 0:00:15]} Kxd6 {[%emt 0:00:04]} 45. g5 {[%emt 0:00:06]} fxg5 {[%emt 0:00:21]} 46. hxg5 {[%emt 0:00:07]} g6 {[%emt 0:00:07]} 47. Kd4 0-1